fUST/lending_fUST_20250615
["ID","MTS","AMOUNT","RATE_DAILY","PERIOD"]
[365828090,1749942636754,-430.0,0.00021917,4]
[365828091,1749942636764,-460.0,0.00021917,4]
[365828092,1749942636774,-430.0,0.00021917,4]
[365828093,1749942636786,-460.0,0.00021917,4]
[365828094,1749942636796,-460.0,0.00021917,4]
[365828095,1749942636806,-430.40629675,0.00021917,4]
[365828096,1749942636816,-430.0,0.00021917,4]
[365828097,1749942636825,-460.0,0.00021917,4]
[365828098,1749942636835,-400.0,0.00021917,4]
[365828099,1749942636845,-450.0,0.00021917,4]
[365828100,1749942636855,-460.0,0.00021917,4]
[365828101,1749942636865,-460.0,0.00021917,4]
[365828102,1749942636875,-406.09963156,0.00021917,4]
[365828103,1749942636884,-512.06,0.00021917,4]
[365828104,1749942636894,-460.0,0.00021917,4]
[365828105,1749942636903,-430.0,0.00021917,4]
[365828106,1749942636913,-430.0,0.00021917,4]
[365828107,1749942636922,-460.0,0.00021917,4]
[365828108,1749942636932,-430.0,0.00021917,4]
[365828109,1749942636942,-450.0,0.00021917,4]
[365828110,1749942636951,-460.0,0.00021917,4]
[365828111,1749942636961,-460.0,0.00021917,4]
[365828112,1749942636970,-1131.02,0.00021917,4]
[365828113,1749942636979,-460.0,0.00021917,4]
[365828114,1749942636989,-460.0,0.00021917,4]
[365828115,1749942636998,-711.64,0.00021917,4]
[365828116,1749942637008,-408.81915788,0.00021917,4]
[365828117,1749942637018,-460.0,0.00021917,4]
[365828118,1749942637028,-460.0,0.00021917,4]
[365828119,1749942637038,-460.0,0.00021917,4]
[365828120,1749942637048,-1108.04,0.00021917,4]
[365828121,1749942637058,-430.0,0.00021917,4]
[365828122,1749942637067,-460.0,0.00021917,4]
[365828123,1749942637077,-460.0,0.00021917,4]
[365828124,1749942637088,-460.0,0.00021917,4]
[365828125,1749942637098,-460.0,0.00021917,4]
[365828126,1749942637109,-460.0,0.00021917,4]
[365828127,1749942637118,-274.09066979,0.00021917,4]
[365828128,1749942637128,-460.0,0.00021917,4]
[365828129,1749942637138,-1002.91,0.00021917,4]
[365828130,1749942637147,-460.0,0.00021917,4]
[365828131,1749942637156,-430.0,0.00021917,4]
[365828132,1749942637167,-470.0,0.00021917,4]
[365828133,1749942637176,-460.0,0.00021917,4]
[365828134,1749942637186,-857.45,0.00021917,4]
[365828135,1749942637195,-430.0,0.00021917,4]
[365828136,1749942637205,-403.16644927,0.00021917,4]
[365828137,1749942637214,-460.0,0.00021917,4]
[365828138,1749942637224,-430.0,0.00021917,4]
[365828139,1749942637234,-3300.29,0.00021917,4]
[365828140,1749942637244,-716.31,0.00021917,4]
[365828141,1749942637253,-460.0,0.00021917,4]
[365828142,1749942637263,-460.0,0.00021917,4]
[365828143,1749942637272,-430.0,0.00021917,4]
[365828144,1749942637281,-2387.16,0.00021917,4]
[365828145,1749942637291,-460.0,0.00021917,4]
[365828146,1749942637300,-3336.2,0.00021917,4]
[365828147,1749942637309,-430.0,0.00021917,4]
[365828148,1749942637319,-179.20272216,0.00021917,4]
[365828149,1749942637328,-460.0,0.00021917,4]
[365828150,1749942637338,-505.31049009,0.00021917,4]
[365828151,1749942637347,-430.0,0.00021917,4]
[365828152,1749942637357,-460.0,0.00021917,4]
[365828153,1749942637367,-460.0,0.00021917,4]
[365828154,1749942637377,-450.0,0.00021917,4]
[365828155,1749942637387,-460.0,0.00021917,4]
[365828156,1749942637397,-438.07234433,0.00021917,4]
[365828157,1749942637406,-460.0,0.00021917,4]
[365828158,1749942637415,-460.0,0.00021917,4]
[365828159,1749942637425,-460.0,0.00021917,4]
[365828160,1749942637435,-451.58620927,0.00021917,4]
[365828161,1749942637444,-460.0,0.00021917,4]
[365828162,1749942637453,-1414.65,0.00021917,4]
[365828163,1749942637463,-430.0,0.00021917,4]
[365828164,1749942637472,-502.88796754,0.00021917,4]
[365828165,1749942637481,-460.0,0.00021917,4]
[365828166,1749942637491,-568.91,0.00021917,4]
[365828167,1749942637500,-460.0,0.00021917,4]
[365828168,1749942637515,-430.0,0.00021917,4]
[365828169,1749942637524,-430.0,0.00021917,4]
[365828170,1749942637534,-460.0,0.00021917,4]
[365828172,1749942637543,-3965.51,0.00021917,4]
[365828173,1749942637554,-4101.37,0.00021917,4]
[365828174,1749942637566,-460.0,0.00021917,4]
[365828176,1749942637578,-460.0,0.00021917,4]
[365828177,1749942637589,-4842.36,0.00021917,4]
[365828178,1749942637598,-201.51,0.00021917,4]
[365828179,1749942637608,-460.0,0.00021917,4]
[365828180,1749942637617,-910.23,0.00021917,4]
[365828181,1749942637627,-430.0,0.00021917,4]
[365828182,1749942637636,-517.58,0.00021917,2]
[365828183,1749942637646,-430.0,0.00021917,4]
[365828185,1749942637656,-1001.53,0.00021917,4]
[365828187,1749942637665,-460.0,0.00021917,4]
[365828188,1749942637674,-460.0,0.00021917,4]
[365828189,1749942637684,-460.0,0.00021917,4]
[365828190,1749942637694,-460.0,0.00021917,4]
[365828191,1749942637704,-430.0,0.00021917,4]
[365828192,1749942637713,-460.0,0.00021917,4]
[365828193,1749942637723,-460.0,0.00021917,4]
[365828194,1749942637732,-1022.41,0.00021917,4]
[365828195,1749942637742,-460.0,0.00021917,4]
[365828196,1749942637752,-460.0,0.00021917,4]
[365828198,1749942637762,-601.64,0.00021917,4]
[365828200,1749942637772,-430.0,0.00021917,4]
[365828202,1749942637781,-311.25541718,0.00021917,4]
[365828204,1749942637791,-460.0,0.00021917,4]
[365828205,1749942637801,-430.0,0.00021917,4]
[365828206,1749942637810,-460.0,0.00021917,4]
[365828207,1749942637820,-430.0,0.00021917,4]
[365828208,1749942637830,-460.0,0.00021917,4]
[365828209,1749942637839,-1836.93,0.00021917,4]
[365828210,1749942637849,-430.0,0.00021917,4]
[365828211,1749942637858,-430.0,0.00021917,4]
[365828212,1749942637867,-539.89,0.00021917,4]
[365828214,1749942637877,-499.96,0.00021917,4]
[365828216,1749942637886,-440.0,0.00021917,4]
[365828217,1749942637895,-430.0,0.00021917,4]
[365828219,1749942637905,-460.0,0.00021917,4]
[365828220,1749942637918,-500.0,0.00021917,4]
[365828221,1749942637929,-500.0,0.00021917,4]
[365828222,1749942638059,-430.0,0.00021917,4]
[365828223,1749942638070,-430.0,0.00021917,4]
[365828224,1749942638079,-430.0,0.00021917,4]
[365828225,1749942638090,-460.0,0.00021917,4]
[365828227,1749942638099,-430.0,0.00021917,4]
[365828228,1749942638108,-460.0,0.00021917,4]
[365828229,1749942638117,-3168.7,0.00021917,4]
[365828230,1749942638127,-450.17455414,0.00021917,4]
[365828231,1749942638137,-500.0,0.00021917,4]
[365828232,1749942638146,-500.0,0.00021917,4]
[365828233,1749942638155,-500.0,0.00021917,4]
[365828234,1749942638166,-460.0,0.00021917,4]
[365828235,1749942638177,-500.0,0.00021917,4]
[365828236,1749942638187,-430.0,0.00021917,4]
[365828237,1749942638197,-460.0,0.00021917,4]
[365828238,1749942638207,-430.0,0.00021917,4]
[365828239,1749942638217,-430.0,0.00021917,4]
[365828240,1749942638226,-460.0,0.00021917,4]
[365828241,1749942638235,-313.19630834,0.00021917,4]
[365828242,1749942638244,-460.0,0.00021917,4]
[365828243,1749942638254,-430.0,0.00021917,4]
[365828244,1749942638263,-1522.71,0.00021917,4]
[365828245,1749942638272,-430.0,0.00021917,4]
[365828246,1749942638286,-460.0,0.00021917,4]
[365828247,1749942638295,-430.0,0.00021917,4]
[365828248,1749942638305,-430.0,0.00021917,4]
[365828249,1749942638314,-298.94071719,0.00021917,4]
[365828250,1749942638323,-672.89,0.00021917,4]
[365828251,1749942638333,-430.0,0.00021917,4]
[365828252,1749942638343,-460.0,0.00021917,4]
[365828253,1749942638352,-446.21677449,0.00021917,4]
[365828254,1749942638362,-460.0,0.00021917,4]
[365828255,1749942638371,-430.0,0.00021917,4]
[365828256,1749942638381,-430.0,0.00021917,4]
[365828257,1749942638390,-460.0,0.00021917,4]
[365828258,1749942638405,-460.0,0.00021917,4]
[365828259,1749942638414,-523.83360075,0.00021917,4]
[365828260,1749942638424,-460.0,0.00021917,4]
[365828261,1749942638434,-460.0,0.00021917,4]
[365828262,1749942638444,-430.0,0.00021917,4]
[365828263,1749942638454,-460.0,0.00021917,4]
[365828264,1749942638464,-430.0,0.00021917,4]
[365828265,1749942638474,-470.0,0.00021917,4]
[365828266,1749942638484,-1355.96,0.00021917,4]
[365828267,1749942638493,-531.14580334,0.00021917,4]
[365828268,1749942638506,-500.0,0.00021973,2]
[365828269,1749942638520,-500.0,0.00021973,2]
[365828270,1749942638530,-447.3515898,0.00021973,2]
[365828271,1749942638539,-160.19446319,0.00021973,2]
[365828272,1749942638550,-500.0,0.00021973,2]
[365828273,1749942638559,-500.0,0.00021973,2]
[365828274,1749942638568,-500.0,0.00021973,2]
[365828275,1749942638578,-500.0,0.00021973,2]
[365828276,1749942638589,-500.0,0.00022003,4]
[365828277,1749942638599,-1575.01399744,0.00022038,6]
[365828278,1749942638608,-226.0,0.00022091,2]
[365828279,1749942638618,-500.0,0.00022173,2]
[365828280,1749942638627,-297.29849381,0.00022173,2]
[365828281,1749942638637,-1575.01399744,0.00022176,6]
[365828282,1749942638647,-500.0,0.0002219,4]
[365828283,1749942638657,-430.0,0.00022191,4]
[365828284,1749942638667,-460.0,0.00022191,4]
[365828285,1749942638677,-460.0,0.00022191,4]
[365828286,1749942638686,-430.0,0.00022191,4]
[365828287,1749942638696,-430.0,0.00022191,4]
[365828288,1749942638706,-460.0,0.00022191,4]
[365828289,1749942638716,-450.0,0.00022191,4]
[365828290,1749942638725,-553.57840911,0.00022191,4]
[365828291,1749942638735,-460.0,0.00022191,4]
[365828292,1749942638745,-430.0,0.00022191,4]
[365828293,1749942638754,-390.0,0.00022191,4]
[365828294,1749942638763,-176.35400797,0.00022191,4]
[365828295,1749942638772,-430.0,0.00022191,4]
[365828296,1749942638782,-254.82957489,0.00022191,4]
[365828297,1749942638791,-400.0,0.00022191,4]
[365828298,1749942638801,-460.0,0.00022191,4]
[365828299,1749942638810,-382.35406267,0.00022191,4]
[365828300,1749942638819,-430.0,0.00022191,4]
[365828301,1749942638829,-270.0,0.00022191,4]
[365828302,1749942638840,-460.0,0.00022191,4]
[365828303,1749942638849,-460.0,0.00022191,4]
[365828304,1749942638858,-460.0,0.00022191,4]
[365828305,1749942638868,-400.0,0.00022191,4]
[365828306,1749942638877,-460.0,0.00022191,4]
[365828307,1749942638886,-460.0,0.00022191,4]
[365828308,1749942638895,-286.51990883,0.00022191,4]
[365828309,1749942638905,-460.0,0.00022191,4]
[365828310,1749942638914,-400.0,0.00022191,4]
[365828311,1749942638923,-276.09857775,0.00022191,4]
[365828312,1749942638932,-460.0,0.00022191,4]
[365828313,1749942638941,-225.59931388,0.00022191,4]
[365828314,1749942638951,-440.0,0.00022191,4]
[365828315,1749942638961,-160.0,0.00022191,4]
[365828316,1749942638970,-907.14,0.00022191,4]
[365828317,1749942638979,-460.0,0.00022191,4]
[365828318,1749942638988,-573.98,0.00022191,4]
[365828319,1749942638998,-439.99717837,0.00022191,4]
[365828320,1749942639007,-400.0,0.00022191,4]
[365828321,1749942639016,-430.0,0.00022191,4]
[365828322,1749942639025,-420.0,0.00022191,4]
[365828323,1749942639035,-460.0,0.00022191,4]
[365828324,1749942639044,-400.0,0.00022191,4]
[365828325,1749942639053,-430.0,0.00022191,4]
[365828326,1749942639062,-430.0,0.00022191,4]
[365828327,1749942639071,-460.0,0.00022191,4]
[365828328,1749942639081,-460.0,0.00022191,4]
[365828329,1749942639091,-460.0,0.00022191,4]
[365828330,1749942639100,-390.0,0.00022191,4]
[365828331,1749942639109,-370.0,0.00022191,4]
[365828332,1749942639118,-460.0,0.00022191,4]
[365828333,1749942639128,-460.0,0.00022191,4]
[365828334,1749942639137,-460.0,0.00022191,4]
[365828335,1749942639146,-460.0,0.00022191,4]
[365828336,1749942639155,-460.0,0.00022191,4]
[365828337,1749942639164,-400.0,0.00022191,4]
[365828338,1749942639173,-460.0,0.00022191,4]
[365828339,1749942639182,-400.0,0.00022191,4]
[365828340,1749942639191,-460.0,0.00022191,4]
[365828341,1749942639200,-460.0,0.00022191,4]
[365828342,1749942639209,-469.56385593,0.00022191,4]
[365828343,1749942639218,-460.0,0.00022191,4]
[365828344,1749942639228,-400.0,0.00022191,4]
[365828345,1749942639237,-456.43572756,0.00022191,4]
[365828346,1749942639247,-460.0,0.00022191,4]
[365828347,1749942639257,-323.97759682,0.00022191,4]
[365828348,1749942639266,-400.0,0.00022191,4]
[365828349,1749942639275,-390.0,0.00022191,4]
[365828350,1749942639285,-390.0,0.00022191,4]
[365828351,1749942639294,-500.0,0.00022191,4]
[365828352,1749942639304,-390.0,0.00022191,4]
[365828353,1749942639313,-255.0816639,0.00022191,4]
[365828354,1749942639323,-273.94304848,0.00022191,4]
[365828355,1749942639332,-390.0,0.00022191,4]
[365828356,1749942639342,-400.0,0.00022191,4]
[365828357,1749942639351,-460.0,0.00022191,4]
[365828358,1749942639361,-390.0,0.00022191,4]
[365828359,1749942639370,-1136.8,0.00022191,4]
[365828360,1749942639379,-460.0,0.00022191,4]
[365828361,1749942639389,-390.0,0.00022191,4]
[365828362,1749942639398,-430.0,0.00022191,4]
[365828363,1749942639408,-400.0,0.00022191,4]
[365828364,1749942639417,-460.0,0.00022191,4]
[365828365,1749942639427,-390.0,0.00022191,4]
[365828366,1749942639436,-460.0,0.00022191,4]
[365828367,1749942639446,-430.0,0.00022191,4]
[365828368,1749942639455,-430.0,0.00022191,4]
[365828369,1749942639464,-503.65612292,0.00022191,4]
[365828370,1749942639473,-460.0,0.00022191,4]
[365828371,1749942639483,-460.0,0.00022191,4]
[365828372,1749942639492,-678.97,0.00022191,4]
[365828373,1749942639503,-460.0,0.00022191,4]
[365828374,1749942639515,-475.35,0.00022191,4]
[365828375,1749942639524,-460.0,0.00022191,4]
[365828376,1749942639534,-430.0,0.00022191,4]
[365828377,1749942639544,-460.0,0.00022191,4]
[365828379,1749942639554,-547.98,0.00022191,4]
[365828381,1749942639564,-400.0,0.00022191,4]
[365828383,1749942639574,-350.0,0.00022191,4]
[365828385,1749942639585,-460.0,0.00022191,4]
[365828386,1749942639595,-460.0,0.00022191,4]
[365828387,1749942639605,-460.0,0.00022191,4]
[365828388,1749942639615,-1870.82,0.00022191,4]
[365828389,1749942639625,-460.0,0.00022191,4]
[365828390,1749942639635,-3250.58,0.00022191,4]
[365828391,1749942639645,-460.0,0.00022191,4]
[365828392,1749942639654,-420.0,0.00022191,4]
[365828393,1749942639664,-430.0,0.00022191,4]
[365828394,1749942639673,-400.0,0.00022191,4]
[365828395,1749942639683,-400.0,0.00022191,4]
[365828396,1749942639693,-400.0,0.00022191,4]
[365828397,1749942639702,-1454.97,0.00022191,4]
[365828398,1749942639712,-204.64870237,0.00022191,4]
[365828400,1749942639722,-460.0,0.00022191,4]
[365828401,1749942639731,-1630.71,0.00022191,4]
[365828402,1749942639741,-400.0,0.00022191,4]
[365828403,1749942639750,-341.0064111,0.00022191,4]
[365828404,1749942639760,-400.0,0.00022191,4]
[365828405,1749942639769,-400.0,0.00022191,4]
[365828407,1749942639779,-400.0,0.00022191,4]
[365828409,1749942639790,-460.0,0.00022191,4]
[365828411,1749942639799,-536.87,0.00022191,4]
[365828412,1749942639809,-639.76,0.00022191,4]
[365828413,1749942639819,-400.0,0.00022191,4]
[365828414,1749942639828,-400.0,0.00022191,4]
[365828415,1749942639838,-370.0,0.00022191,4]
[365828416,1749942639848,-299.67536577,0.00022191,4]
[365828417,1749942639857,-400.0,0.00022191,4]
[365828418,1749942639867,-445.81552741,0.00022191,4]
[365828419,1749942639876,-4036.84,0.00022191,4]
[365828420,1749942639886,-460.0,0.00022191,4]
[365828421,1749942639895,-580.06,0.00022191,4]
[365828422,1749942639905,-400.0,0.00022191,4]
[365828424,1749942639914,-400.0,0.00022191,4]
[365828426,1749942639924,-460.0,0.00022191,4]
[365828428,1749942639934,-460.0,0.00022191,4]
[365828429,1749942639943,-400.0,0.00022191,4]
[365828430,1749942639953,-460.0,0.00022191,4]
[365828431,1749942639962,-400.0,0.00022191,4]
[365828432,1749942639971,-460.0,0.00022191,4]
[365828433,1749942639981,-460.0,0.00022191,4]
[365828434,1749942639990,-453.8913643,0.00022191,4]
[365828435,1749942640000,-460.0,0.00022191,4]
[365828436,1749942640009,-400.0,0.00022191,4]
[365828437,1749942640019,-1703.45,0.00022191,4]
[365828438,1749942640028,-670.68,0.00022191,4]
[365828439,1749942640037,-400.0,0.00022191,4]
[365828441,1749942640047,-536.34,0.00022191,4]
[365828442,1749942640056,-400.0,0.00022191,4]
[365828443,1749942640066,-174.34349604,0.00022191,4]
[365828444,1749942640076,-310.0,0.00022191,4]
[365828445,1749942640086,-460.0,0.00022191,4]
[365828446,1749942640096,-400.0,0.00022191,4]
[365828447,1749942640105,-400.0,0.00022191,4]
[365828448,1749942640115,-400.0,0.00022191,4]
[365828449,1749942640124,-400.0,0.00022191,4]
[365828450,1749942640133,-554.82,0.00022191,4]
[365828451,1749942640143,-500.0,0.00022191,4]
[365828452,1749942640157,-460.0,0.00022191,4]
[365828454,1749942640166,-619.93,0.00022191,4]
[365828456,1749942640176,-472.75229041,0.00022191,4]
[365828457,1749942640185,-400.0,0.00022191,4]
[365828458,1749942640194,-710.88,0.00022191,4]
[365828459,1749942640204,-400.0,0.00022191,4]
[365828460,1749942640214,-400.0,0.00022191,4]
[365828461,1749942640224,-460.0,0.00022191,4]
[365828462,1749942640233,-460.0,0.00022191,4]
[365828463,1749942640243,-921.63,0.00022191,4]
[365828464,1749942640253,-400.0,0.00022191,4]
[365828465,1749942640262,-1084.94,0.00022191,4]
[365828466,1749942640271,-400.0,0.00022191,4]
[365828467,1749942640281,-452.54944565,0.00022191,4]
[365828468,1749942640291,-460.0,0.00022191,4]
[365828469,1749942640300,-460.0,0.00022191,4]
[365828470,1749942640312,-400.0,0.00022191,4]
[365828471,1749942640323,-460.0,0.00022191,4]
[365828472,1749942640333,-460.0,0.00022191,4]
[365828473,1749942640346,-512.06,0.00022191,4]
[365828474,1749942640356,-400.0,0.00022191,4]
[365828475,1749942640365,-41.03400598,0.00022191,4]
[365828476,1749942640516,-418.96599402,0.00022191,4]
[365828477,1749942640526,-460.0,0.00022191,4]
[365828478,1749942640535,-460.0,0.00022191,4]
[365828479,1749942640544,-1131.02,0.00022191,4]
[365828480,1749942640554,-400.0,0.00022191,4]
[365828481,1749942640563,-400.0,0.00022191,4]
[365828482,1749942640572,-711.64,0.00022191,4]
[365828483,1749942640583,-460.0,0.00022191,4]
[365828484,1749942640594,-400.0,0.00022191,4]
[365828485,1749942640603,-400.0,0.00022191,4]
[365828486,1749942640737,-1108.04,0.00022191,4]
[365828487,1749942640748,-460.0,0.00022191,4]
[365828488,1749942640758,-400.0,0.00022191,4]
[365828489,1749942640767,-400.0,0.00022191,4]
[365828490,1749942640776,-410.0,0.00022191,4]
[365828491,1749942640786,-400.0,0.00022191,4]
[365828492,1749942640796,-460.0,0.00022191,4]
[365828493,1749942640805,-1002.91,0.00022191,4]
[365828494,1749942640814,-460.0,0.00022191,4]
[365828495,1749942640824,-440.0,0.00022191,4]
[365828496,1749942640833,-857.45,0.00022191,4]
[365828497,1749942640843,-460.0,0.00022191,4]
[365828498,1749942640853,-3300.29,0.00022191,4]
[365828499,1749942640862,-716.31,0.00022191,4]
[365828500,1749942640871,-400.0,0.00022191,4]
[365828501,1749942640881,-460.0,0.00022191,4]
[365828502,1749942640890,-2387.16,0.00022191,4]
[365828503,1749942640900,-400.0,0.00022191,4]
[365828504,1749942640909,-3336.2,0.00022191,4]
[365828505,1749942640918,-477.67760231,0.00022191,4]
[365828506,1749942640928,-460.0,0.00022191,4]
[365828507,1749942640937,-400.0,0.00022191,4]
[365828508,1749942640947,-460.0,0.00022191,4]
[365828509,1749942640957,-400.0,0.00022191,4]
[365828510,1749942640966,-400.0,0.00022191,4]
[365828511,1749942640975,-400.0,0.00022191,4]
[365828512,1749942640984,-460.0,0.00022191,4]
[365828513,1749942640993,-1414.65,0.00022191,4]
[365828514,1749942641002,-460.0,0.00022191,4]
[365828515,1749942641012,-568.91,0.00022191,4]
[365828516,1749942641021,-460.0,0.00022191,4]
[365828517,1749942641030,-460.0,0.00022191,4]
[365828518,1749942641040,-3965.51,0.00022191,4]
[365828519,1749942641050,-4101.37,0.00022191,4]
[365828520,1749942641060,-460.0,0.00022191,4]
[365828521,1749942641069,-470.0,0.00022191,4]
[365828522,1749942641078,-4842.36,0.00022191,4]
[365828523,1749942641089,-486.02723809,0.00022191,4]
[365828524,1749942641099,-910.23,0.00022191,4]
[365828525,1749942641108,-517.58,0.00022191,2]
[365828526,1749942641117,-1001.53,0.00022191,4]
[365828527,1749942641127,-460.0,0.00022191,4]
[365828528,1749942641136,-420.0,0.00022191,4]
[365828529,1749942641145,-460.0,0.00022191,4]
[365828530,1749942641155,-488.35614709,0.00022191,4]
[365828531,1749942641164,-400.0,0.00022191,4]
[365828532,1749942641175,-420.0,0.00022191,4]
[365828533,1749942641185,-558.79180644,0.00022191,4]
[365828534,1749942641675,-460.0,0.00021917,4]
[365828535,1749942641687,-460.0,0.00021917,4]
[365828536,1749942641697,-460.0,0.00021917,4]
[365828537,1749942641707,-2479.7373054,0.00022181,2]
[365828538,1749942641716,-463.61819356,0.00022191,4]
[365828539,1749942641726,-400.0,0.00022191,4]
[365828540,1749942641735,-460.0,0.00022191,4]
[365828541,1749942641745,-601.64,0.00022191,4]
[365828542,1749942641754,-460.0,0.00022191,4]
[365828543,1749942641763,-460.0,0.00022191,4]
[365828544,1749942641774,-460.0,0.00022191,4]
[365828545,1749942641783,-1836.93,0.00022191,4]
[365828546,1749942641792,-539.89,0.00022191,4]
[365828547,1749942641802,-499.96,0.00022191,4]
[365828548,1749942641812,-420.0,0.00022191,4]
[365828549,1749942641821,-460.0,0.00022191,4]
[365828550,1749942641831,-460.0,0.00022191,4]
[365828551,1749942641840,-3168.7,0.00022191,4]
[365828552,1749942641849,-420.0,0.00022191,4]
[365828553,1749942641859,-290.0,0.00022191,4]
[365828554,1749942641868,-430.0,0.00022191,4]
[365828555,1749942641878,-460.0,0.00022191,4]
[365828556,1749942641887,-1522.71,0.00022191,4]
[365828557,1749942641896,-174.04083357,0.00022191,4]
[365828558,1749942641905,-672.89,0.00022191,4]
[365828559,1749942641915,-460.0,0.00022191,4]
[365828560,1749942641924,-460.0,0.00022191,4]
[365828561,1749942641934,-430.0,0.00022191,4]
[365828562,1749942641943,-460.0,0.00022191,4]
[365828563,1749942641953,-460.0,0.00022191,4]
[365828564,1749942641962,-375.76350598,0.00022191,4]
[365828565,1749942641971,-460.0,0.00022191,4]
[365828566,1749942641980,-1355.96,0.00022191,4]
[365828567,1749942641989,-460.0,0.00022191,4]
[365828568,1749942641999,-460.0,0.00022191,4]
[365828569,1749942642008,-460.0,0.00022191,4]
[365828570,1749942642017,-500.0,0.0002225,2]
[365828571,1749942642027,-1575.01399744,0.00022314,7]
[365828572,1749942642037,-11459.53867848,0.00022326,2]
[365828573,1749942642046,-571.77089163,0.000224,2]
[365828574,1749942642056,-1575.01399744,0.00022452,7]
[365828575,1749942642065,-380.0,0.00022465,4]
[365828576,1749942642074,-380.0,0.00022465,4]
[365828577,1749942642083,-400.0,0.00022465,4]
[365828578,1749942642094,-495.51378918,0.00022465,4]
[365828579,1749942642104,-548.25653715,0.00022465,4]
[365828580,1749942642113,-400.0,0.00022465,4]
[365828581,1749942642122,-460.0,0.00022465,4]
[365828582,1749942642131,-460.0,0.00022465,4]
[365828583,1749942642141,-460.0,0.00022465,4]
[365828584,1749942642150,-460.0,0.00022465,4]
[365828585,1749942642159,-460.0,0.00022465,4]
[365828586,1749942642168,-430.0,0.00022465,4]
[365828587,1749942642178,-573.98,0.00022465,4]
[365828588,1749942642187,-233.1,0.00022465,4]
[365828589,1749942642196,-400.0,0.00022465,4]
[365828590,1749942642205,-460.0,0.00022465,4]
[365828591,1749942642215,-460.0,0.00022465,4]
[365828592,1749942642224,-400.0,0.00022465,4]
[365828593,1749942642234,-460.0,0.00022465,4]
[365828594,1749942642243,-460.0,0.00022465,4]
[365828595,1749942642253,-460.0,0.00022465,4]
[365828596,1749942642263,-460.0,0.00022465,4]
[365828597,1749942642272,-460.0,0.00022465,4]
[365828598,1749942642282,-176.46763862,0.00022465,4]
[365828599,1749942642291,-360.0,0.00022465,4]
[365828600,1749942642301,-359.30674547,0.00022465,4]
[365828601,1749942642311,-460.0,0.00022465,4]
[365828602,1749942642319,-460.0,0.00022465,4]
[365828603,1749942642329,-1136.8,0.00022465,4]
[365828604,1749942642338,-460.0,0.00022465,4]
[365828605,1749942642347,-460.0,0.00022465,4]
[365828606,1749942642356,-460.0,0.00022465,4]
[365828607,1749942642365,-344.69431804,0.00022465,4]
[365828608,1749942642374,-460.0,0.00022465,4]
[365828609,1749942642383,-678.97,0.00022465,4]
[365828610,1749942642392,-460.0,0.00022465,4]
[365828611,1749942642402,-475.35,0.00022465,4]
[365828612,1749942642411,-460.0,0.00022465,4]
[365828613,1749942642420,-204.09604239,0.00022465,4]
[365828614,1749942642429,-547.98,0.00022465,4]
[365828615,1749942642438,-460.0,0.00022465,4]